bitfinex/quotes_SOLUSD_20250917
["timestamp","ask_amount","ask_price","bid_price","bid_amount"]
[1758145340207,1e-08,239.76,239.75,80.38430874]
[1758145340415,1e-08,239.76,239.75,54.38430874]
[1758145345908,1e-08,239.76,239.75,53.71430874]
[1758145346410,1e-08,239.76,239.75,53.67430874]
[1758145348032,1e-08,239.76,239.75,53.70430874]
[1758145348829,1e-08,239.76,239.75,53.68430874]
[1758145350122,1e-08,239.76,239.75,21.30430874]
[1758145350336,1e-08,239.76,239.75,53.3799856]
[1758145351714,1e-08,239.76,239.75,21.0199856]
[1758145351918,1e-08,239.76,239.75,56.60336572]
[1758145355723,1e-08,239.76,239.73,0.7]
[1758145355724,0.59000001,239.76,239.73,0.03]
[1758145355928,1e-08,239.76,239.74,29.28338012]
[1758145356124,1e-08,239.76,239.75,13.59559401]
[1758145356430,1e-08,239.76,239.75,49.39897413]
[1758145356931,0.59000001,239.76,239.75,49.39897413]
[1758145357315,0.59000001,239.76,239.75,53.5699856]
[1758145358721,1e-08,239.76,239.75,53.5699856]
[1758145359148,1e-08,239.76,239.75,20.9899856]
[1758145359331,1e-08,239.76,239.75,53.5499856]
[1758145359733,1e-08,239.76,239.75,52.38487002]
[1758145363243,1e-08,239.76,239.75,53.04487002]
[1758145363446,1e-08,239.76,239.75,52.36487002]
[1758145363751,1e-08,239.76,239.75,53.02487002]
[1758145364843,1e-08,239.76,239.75,53.30919316]
[1758145365853,1e-08,239.76,239.75,53.33919316]
[1758145369140,1e-08,239.76,239.75,51.28092862]
[1758145369340,1e-08,239.76,239.75,53.33919316]
[1758145370427,1e-08,239.76,239.75,61.57225132]
[1758145372034,1e-08,239.76,239.75,53.31919316]
[1758145374662,1e-08,239.76,239.75,53.29919316]
[1758145375474,1e-08,239.76,239.75,55.3574577]
[1758145375858,211.5,239.94,239.83,13.59559401]
[1758145375859,0.59,239.86,239.83,13.59559401]
[1758145376058,0.59,239.86,239.85,15.65385855]
[1758145376258,0.59,239.88,239.85,15.65385855]
[1758145376467,2.80913755,239.91,239.87,13.59559401]
[1758145376653,2.80913755,239.9,239.88,32.5]
[1758145376971,0.59,239.89,239.88,46.09559401]
[1758145377572,0.59,239.89,239.88,13.59559401]
[1758145377781,0.59,239.89,239.88,46.07559401]
[1758145380474,6.97705374,239.93,239.89,13.59559401]
[1758145380672,0.59,239.92,239.9,32.46]
[1758145380872,0.59,239.92,239.91,46.05559401]
[1758145381085,0.59,239.94,239.91,46.05559401]
[1758145381263,2.80913755,239.94,239.92,46.05559401]
[1758145381582,0.59,239.96,239.92,46.05559401]
[1758145381897,29.51142193,240.02,239.92,46.05559401]
[1758145381898,3.51142193,240.08,239.99,26.0]
[1758145382185,0.59,240.1,240.04,13.59559401]
[1758145382385,0.59,240.1,240.06,13.59559401]
[1758145382386,2.05826454,240.09,240.06,13.59559401]
[1758145382561,0.59,240.11,240.08,13.59559401]
[1758145382762,0.59,240.1,240.08,13.59559401]
[1758145383257,2.05826454,240.12,240.1,13.59559401]
[1758145383462,0.59,240.11,240.1,13.59559401]
[1758145383664,2.05826454,240.12,240.1,13.59559401]
[1758145383988,0.59,240.13,240.12,13.59559401]
[1758145384163,0.59,240.16,240.13,13.59559401]
[1758145384360,0.59,240.16,240.15,13.59559401]
[1758145384569,10.40792311,240.21,240.15,13.59559401]
[1758145384570,4.16349948,240.19,240.15,13.59559401]
[1758145384771,2.05826454,240.16,240.15,13.59559401]
[1758145384970,2.05826454,240.16,240.1,13.59559401]
[1758145385168,2.05826454,240.16,240.11,32.74]
[1758145385372,10.40792311,240.21,240.12,14.26559401]
[1758145385373,0.59,240.21,240.12,14.26559401]
[1758145385683,0.59,240.21,240.14,13.59559401]
[1758145385883,2.05826454,240.2,240.16,13.59559401]
[1758145386067,2.05826454,240.2,240.18,13.59559401]
[1758145386380,2.05826454,240.2,240.19,46.35559401]
[1758145387166,2.05826454,240.2,240.19,13.59559401]
[1758145387666,4.16337066,240.19,240.15,13.59559401]
[1758145387868,2.05826454,240.16,240.15,46.33559401]
[1758145388892,4.16359256,240.18,240.15,46.33559401]
[1758145389193,2.05826454,240.16,240.15,46.33559401]
[1758145389567,2.64826454,240.16,240.15,46.33559401]
[1758145389772,2.64826454,240.16,240.15,13.59559401]
[1758145389987,2.05826454,240.16,240.15,13.59559401]
[1758145390689,4.16340574,240.19,240.15,13.59559401]
[1758145390895,2.05826454,240.19,240.17,13.59559401]
[1758145391071,2.05826454,240.19,240.18,46.31559401]
[1758145391392,8.23305816,240.24,240.18,33.39]
[1758145391765,2.05826454,240.19,240.18,46.31559401]
[1758145391979,26.59,240.25,240.19,13.59559401]
[1758145392197,2.05826454,240.2,240.19,13.59559401]
[1758145392371,2.05826454,240.2,240.19,46.31559401]
[1758145392701,2.05826454,240.2,240.19,32.72]
[1758145392990,2.05826454,240.2,240.19,46.31559401]
[1758145394789,2.05826454,240.2,240.1,26.0]
[1758145394790,4.16337066,240.19,240.14,13.59559401]
[1758145394998,4.16337066,240.19,240.15,0.67]
[1758145395168,4.75337066,240.19,240.16,32.7]
[1758145395588,0.59,240.18,240.16,32.7]
[1758145395888,4.16337066,240.19,240.16,32.7]
[1758145396062,4.75337066,240.19,240.15,32.7]
[1758145396485,4.16337066,240.19,240.15,32.7]
[1758145396692,10.4071268,240.22,240.15,32.7]
[1758145396994,10.9971268,240.22,240.15,32.7]
[1758145397397,4.16267743,240.23,240.15,32.7]
[1758145397584,2.05826454,240.18,240.15,32.7]
[1758145397774,2.05826454,240.18,240.15,33.37]
[1758145397964,2.05826454,240.18,240.15,32.7]
[1758145398164,2.05826454,240.18,240.16,0.67]
[1758145398404,2.05826454,240.18,240.17,0.67]
[1758145399169,4.16267743,240.23,240.17,0.67]
[1758145399368,2.05826454,240.19,240.15,32.7]
[1758145399897,2.05826454,240.19,240.16,32.76]
[1758145400479,2.05826454,240.18,240.17,0.67]
[1758145401070,2.05826454,240.18,240.12,4.83458437]
[1758145401268,22.80182272,240.24,240.13,33.43]
[1758145401463,22.80182272,240.24,240.15,13.59559401]
[1758145401687,22.80182272,240.24,240.16,32.74]
[1758145402085,22.80182272,240.24,240.17,0.67]
[1758145402287,0.59,240.23,240.16,32.74]
[1758145402473,4.16265416,240.24,240.17,14.26559401]
[1758145402680,2.05826454,240.2,240.18,0.67]
[1758145403095,2.05826454,240.2,240.19,32.74]
[1758145403271,2.05826454,240.2,240.19,47.00559401]
[1758145403471,4.16265416,240.24,240.19,47.00559401]
[1758145403676,2.05826454,240.21,240.2,0.67]
[1758145403981,0.06,240.25,240.2,0.67]
[1758145403982,0.06,240.25,240.21,13.59559401]
[1758145404196,0.06,240.25,240.23,13.59559401]
[1758145404395,0.06,240.25,240.24,32.94]
[1758145404596,0.06,240.25,240.24,51.36809817]
[1758145404780,0.06,240.25,240.24,18.42809817]
[1758145405098,0.06,240.25,240.24,51.34809817]
[1758145406185,0.06,240.25,240.24,18.42809817]
[1758145406391,0.06,240.25,240.24,47.18559401]
[1758145406574,0.06,240.25,240.24,51.34809817]
[1758145406902,0.06,240.25,240.24,53.40636271]
[1758145407196,0.06,240.25,240.24,20.48636271]
[1758145407400,0.06,240.25,240.24,47.16559401]
[1758145407820,0.06,240.25,240.24,51.32809817]
[1758145407976,0.06,240.25,240.24,53.38636271]
[1758145408706,0.06,240.25,240.24,51.32809817]
[1758145408870,0.06,240.25,240.24,53.38636271]
[1758145409386,0.06,240.25,240.24,47.26559401]
[1758145409582,0.06,240.25,240.24,14.26559401]
[1758145409776,0.06,240.25,240.24,47.28559401]
[1758145410574,0.06,240.25,240.24,51.44809817]
[1758145414213,0.06,240.25,240.24,46.55559401]
[1758145414417,0.06,240.25,240.24,32.96]
[1758145414599,0.65,240.25,240.24,32.98]
[1758145414800,4.8123309,240.25,240.24,32.98]
[1758145415002,4.8123309,240.25,240.19,13.59559401]
[1758145415199,4.8123309,240.25,240.2,32.96]
[1758145415405,0.59,240.24,240.19,13.59559401]
[1758145415593,0.59,240.24,240.2,32.98]
[1758145415993,0.06,240.25,240.2,32.98]
[1758145416189,0.65,240.25,240.21,32.96]
[1758145417523,0.59,240.24,240.22,32.96]
[1758145417838,0.59,240.24,240.18,15.65385855]
[1758145417839,4.75250416,240.24,240.18,13.59559401]
[1758145418023,4.75250416,240.24,240.19,32.96]
[1758145418195,0.06,240.25,240.19,32.96]
[1758145418394,0.06,240.25,240.2,0.71]
[1758145418709,0.06,240.25,240.21,33.65]
[1758145419118,0.06,240.25,240.21,32.94]
[1758145419525,0.06,240.25,240.21,33.65]
[1758145419820,0.06,240.25,240.22,0.71]
[1758145420606,0.06,240.25,240.21,32.94]
[1758145420804,0.06,240.25,240.21,33.65]
[1758145422424,0.06,240.25,240.22,0.71]
[1758145425108,0.06,240.25,240.21,32.94]
[1758145425307,0.06,240.25,240.21,33.65]
[1758145425507,0.06,240.25,240.21,32.94]
[1758145425721,0.06,240.25,240.22,0.71]
[1758145426420,4.22238081,240.25,240.21,32.94]
[1758145426823,4.22238081,240.25,240.19,3.91432846]
[1758145427027,4.22238081,240.25,240.2,32.86]
[1758145427224,0.06,240.25,240.2,32.86]
[1758145427536,0.06,240.25,240.21,0.71]
[1758145428723,0.06,240.25,240.2,32.86]
[1758145429036,0.06,240.25,240.21,0.71]
[1758145429735,4.22237301,240.25,240.21,0.71]
[1758145430210,0.06,240.25,240.22,0.71]
[1758145430409,0.06,240.25,240.23,33.53]
[1758145430814,0.06,240.25,240.23,32.82]
[1758145431010,2.84582131,240.25,240.23,32.82]
[1758145431231,0.06,240.25,240.23,33.53]
[1758145431932,4.22234036,240.25,240.23,33.53]
[1758145432137,4.22234036,240.25,240.24,0.71]
[1758145432325,0.06,240.25,240.23,32.82]
[1758145432525,0.06,240.25,240.23,33.53]
[1758145432836,4.22237018,240.25,240.23,32.82]
[1758145433209,4.22237018,240.25,240.17,0.71]
[1758145433411,0.59,240.24,240.17,0.71]
[1758145433727,0.59,240.24,240.18,32.86]
[1758145434226,3.79432846,240.23,240.14,0.71]
[1758145434832,6.58014977,240.23,240.15,32.88]
[1758145435140,0.59,240.22,240.15,32.88]
[1758145435347,4.16302402,240.21,240.15,32.88]
[1758145436426,7.36735248,240.21,240.15,32.88]
[1758145436626,4.16302402,240.21,240.14,0.71]
[1758145436834,3.20432846,240.21,240.14,33.61]
[1758145437507,0.06,240.25,240.14,47.47479434]
[1758145437713,0.06,240.25,240.18,13.59559401]
[1758145437942,0.06,240.25,240.19,32.88]
[1758145438240,0.06,240.25,240.19,33.57]
[1758145438420,0.06,240.25,240.2,0.69]
[1758145438733,0.06,240.25,240.2,4.16308792]
[1758145438937,0.06,240.25,240.21,0.69]
[1758145439242,0.06,240.25,240.22,0.69]
[1758145439745,0.06,240.25,240.2,4.16308792]
[1758145439945,0.06,240.25,240.23,0.69]
[1758145440115,0.06,240.25,240.23,33.67]
[1758145440628,0.06,240.25,240.24,0.69]
[1758145442127,0.06,240.25,240.23,33.08]
[1758145442515,0.06,240.25,240.24,0.69]
[1758145446330,0.06,240.25,240.24,33.83]
[1758145447038,0.06,240.25,240.24,0.69]
[1758145447215,0.06,240.25,240.24,33.83]
[1758145448817,0.06,240.25,240.24,33.81]
[1758145449955,0.06,240.25,240.24,0.69]
[1758145450251,0.06,240.25,240.24,33.77]
[1758145451137,0.06,240.25,240.24,0.69]
[1758145451333,0.06,240.25,240.24,33.77]
[1758145453846,0.06,240.25,240.24,37.93250416]
[1758145454856,0.06,240.25,240.24,33.77]
[1758145455649,0.06,240.25,240.24,37.93250416]
[1758145455845,0.06,240.25,240.2,10.40783569]
[1758145456072,0.06,240.25,240.21,33.75]
[1758145456273,2.8569709,240.25,240.22,33.06]
[1758145456567,2.8569709,240.25,240.22,33.75]
[1758145456858,0.06,240.25,240.23,0.69]
[1758145457072,2.8569709,240.25,240.23,0.69]
[1758145457250,0.06,240.25,240.22,33.06]
[1758145457449,3.3869709,240.24,240.22,33.06]
[1758145458765,2.7969709,240.24,240.22,33.06]
[1758145459874,6.95947554,240.24,240.21,0.03]
[1758145460178,3.3869709,240.23,240.21,0.03]
[1758145460378,2.7969709,240.22,240.21,33.25]
[1758145460555,7.54982162,240.22,240.21,0.03]
[1758145460749,4.75285072,240.22,240.21,0.03]
[1758145463147,15.15876456,240.24,240.21,0.03]
[1758145463572,14.56876456,240.24,240.21,0.03]
[1758145463750,15.15876456,240.24,240.21,0.03]
[1758145465671,4.75250416,240.24,240.21,0.03]
[1758145468266,3.26432846,240.25,240.22,0.69]
[1758145468479,3.26432846,240.25,240.23,0.69]
[1758145468856,3.26432846,240.25,240.21,0.72]
[1758145469169,3.26432846,240.25,240.22,0.69]
[1758145469465,3.26432846,240.25,240.21,0.03]
[1758145469645,3.26432846,240.25,240.21,0.72]
[1758145469847,3.26432846,240.25,240.22,0.69]
[1758145470577,4.16250416,240.24,240.22,0.69]
[1758145471948,4.16250416,240.24,240.21,0.03]
[1758145472149,4.16250416,240.24,240.21,0.72]
[1758145472849,6.96596752,240.24,240.22,0.72]
[1758145473049,2.80346336,240.24,240.22,0.72]
[1758145473270,2.80346336,240.24,240.21,0.03]
[1758145473468,2.80346336,240.24,240.22,0.72]
[1758145473949,2.80346336,240.24,240.21,0.03]
[1758145474264,2.80346336,240.24,240.22,0.72]
[1758145474462,2.80346336,240.24,240.21,0.03]
[1758145474659,2.80346336,240.24,240.22,0.72]
[1758145474978,2.80346336,240.24,240.23,0.72]
[1758145475452,2.86346336,240.25,240.23,0.72]
[1758145475784,7.02586126,240.25,240.23,0.72]
[1758145476459,7.02586126,240.25,240.21,0.75]
[1758145476783,2.86346336,240.25,240.21,4.91292688]
[1758145476953,0.06,240.25,240.22,0.72]
[1758145477277,0.06,240.25,240.22,33.84]
[1758145477577,0.06,240.25,240.23,4.16267743]
[1758145477759,0.06,240.25,240.24,16.79992247]
[1758145478077,2.80346336,240.31,240.24,16.79992247]
[1758145478078,3.20432846,240.38,240.24,17.51992247]
[1758145478251,2.80215297,240.37,240.3,13.59559401]
[1758145478452,2.80215297,240.36,240.32,13.59559401]
[1758145478666,2.80215297,240.4,240.33,0.72]
[1758145478879,6.71575039,240.43,240.33,0.72]
[1758145478880,2.80215297,240.42,240.33,0.72]
[1758145479380,3.20432846,240.43,240.34,46.73559401]
[1758145479581,3.20432846,240.43,240.35,0.72]
[1758145479752,3.20432846,240.43,240.36,13.59559401]
[1758145479954,3.20432846,240.43,240.37,0.72]
[1758145480149,7.36355625,240.43,240.37,0.72]
[1758145480349,3.20432846,240.41,240.37,0.72]
[1758145480782,3.20432846,240.41,240.37,33.84]
[1758145481068,3.20432846,240.41,240.38,0.72]
[1758145481768,3.20432846,240.41,240.33,4.15922779]
[1758145481981,3.20432846,240.41,240.35,0.72]
[1758145482182,3.20432846,240.39,240.35,0.72]
[1758145482369,3.20432846,240.39,240.34,33.1]
[1758145482370,4.15921474,240.43,240.36,0.72]
[1758145482568,3.20432846,240.4,240.36,0.72]
[1758145482767,3.20432846,240.4,240.37,0.72]
[1758145482977,0.59,240.5,240.38,36.28432846]
[1758145483282,3.20432846,240.48,240.39,14.31559401]
[1758145483461,3.20432846,240.48,240.39,13.59559401]
[1758145483662,3.20432846,240.48,240.41,13.59559401]
[1758145483980,2.04723819,240.48,240.42,4.87938773]
[1758145484182,6.20561161,240.48,240.42,0.72]
[1758145484381,3.38114373,240.52,240.43,0.72]
[1758145484382,2.79114373,240.52,240.43,0.72]
[1758145484563,2.04723819,240.46,240.39,4.15822518]
[1758145484758,2.04723819,240.44,240.38,0.72]
[1758145485061,0.28432314,240.49,240.41,2.04723819]
[1758145485062,2.79114373,240.49,240.41,2.04723819]
[1758145485388,2.04723819,240.5,240.43,13.59559401]
[1758145485571,2.04723819,240.5,240.44,0.72]
[1758145485789,2.04723819,240.52,240.45,17.75431341]
[1758145485959,4.15715409,240.55,240.47,15.6428322]
[1758145486158,0.04463996,240.57,240.49,13.59559401]
[1758145486159,4.20156058,240.57,240.49,13.59559401]
[1758145486376,2.04723819,240.55,240.5,0.72]
[1758145486862,4.20146415,240.57,240.51,0.72]
[1758145487065,2.04723819,240.56,240.51,0.72]
[1758145487284,2.04723819,240.56,240.52,0.72]
[1758145487589,2.04723819,240.54,240.52,0.72]
[1758145487884,4.20148604,240.57,240.46,2.04723819]
[1758145487885,2.04723819,240.53,240.47,0.72]
[1758145488085,2.04723819,240.53,240.47,34.06]
[1758145488782,2.04723819,240.53,240.47,0.72]
[1758145489389,0.04463996,240.57,240.48,2.76723819]
[1758145489685,0.04463996,240.57,240.49,13.59559401]
[1758145489884,0.04463996,240.57,240.51,13.59559401]
[1758145490189,0.04463996,240.57,240.52,33.64]
[1758145490364,0.04463996,240.57,240.52,34.36]
[1758145490563,0.04463996,240.57,240.53,0.72]
[1758145490858,0.04463996,240.57,240.54,13.59559401]
[1758145491275,0.04463996,240.57,240.55,0.72]
[1758145491477,0.04463996,240.57,240.56,13.59559401]
[1758145491667,2.04723819,240.68,240.56,13.59559401]
[1758145491875,2.04723819,240.68,240.62,13.59559401]
[1758145492185,2.04723819,240.68,240.63,0.72]
[1758145492383,2.04723819,240.68,240.64,0.72]
[1758145492561,4.15456528,240.7,240.65,0.72]
[1758145492760,2.04723819,240.68,240.66,0.72]
[1758145493174,4.15456528,240.78,240.63,12.68183468]
[1758145493372,2.04723819,240.75,240.66,15.6428322]
[1758145493589,4.15282711,240.8,240.68,13.59559401]
[1758145493770,2.04723819,240.76,240.7,13.59559401]
[1758145494080,2.04723819,240.74,240.69,33.8]
[1758145494261,2.04723819,240.74,240.69,34.52]
[1758145494462,14.53488691,240.8,240.67,37.97282711]
[1758145494463,2.04723819,240.72,240.67,37.97282711]
[1758145494681,2.04723819,240.72,240.67,34.54]
[1758145494987,2.04723819,240.71,240.67,0.72]
[1758145495192,2.04723819,240.71,240.65,33.82]
[1758145495493,2.04723819,240.71,240.62,26.07868981]
[1758145495494,2.04723819,240.69,240.63,0.72]
[1758145495667,2.04723819,240.67,240.63,0.72]
[1758145496077,2.04723819,240.67,240.58,6.20384037]
[1758145496078,2.04723819,240.67,240.59,4.15454923]
[1758145496272,2.04723819,240.67,240.59,38.69454923]
[1758145496491,2.04723819,240.61,240.51,33.82]
[1758145496691,2.04723819,240.61,240.53,0.72]
[1758145497196,2.04723819,240.61,240.53,1.32]
[1758145497485,2.04723819,240.61,240.5,0.72]
[1758145497486,2.04723819,240.57,240.5,0.72]
[1758145497984,14.54817523,240.58,240.5,0.72]
[1758145499583,2.04723819,240.59,240.5,0.72]
[1758145499778,4.97172217,240.59,240.5,0.72]
[1758145500487,14.54636132,240.61,240.5,4.87792001]
[1758145500693,4.97172217,240.6,240.51,14.29559401]
[1758145500897,4.97172217,240.6,240.5,4.15792001]
[1758145501070,0.64,240.64,240.53,13.59559401]
[1758145501271,4.97172217,240.6,240.53,13.59559401]
[1758145501469,4.1559548,240.62,240.53,13.59559401]
[1758145501690,4.1559548,240.62,240.55,13.59559401]
[1758145501899,4.97172217,240.61,240.56,0.7]
[1758145502071,4.1559548,240.62,240.57,0.7]
[1758145502394,9.12767697,240.62,240.57,0.7]
[1758145502568,4.97172217,240.6,240.55,13.59559401]
[1758145502774,4.97172217,240.6,240.55,14.25559401]
[1758145502991,4.97172217,240.6,240.56,0.66]
[1758145503268,4.1559548,240.62,240.56,0.66]
[1758145503473,4.15631893,240.6,240.56,0.66]
[1758145503682,9.1280411,240.6,240.56,0.66]
[1758145503882,36.38794103,240.67,240.57,0.66]
[1758145504075,4.15523975,240.66,240.57,0.66]
[1758145504296,4.15499584,240.68,240.58,13.59559401]
[1758145504592,4.97172217,240.67,240.59,0.66]
[1758145504792,4.97172217,240.67,240.61,13.59559401]
[1758145505005,26.06,240.74,240.63,13.59559401]
[1758145505006,4.97172217,240.69,240.63,13.59559401]
[1758145505214,0.06,240.74,240.64,0.66]
[1758145505501,4.97172217,240.71,240.66,13.59559401]
[1758145505680,4.97172217,240.71,240.68,13.59559401]
[1758145505886,4.97172217,240.71,240.67,0.66]
[1758145505887,4.97172217,240.73,240.7,13.59559401]
[1758145506118,0.06,240.74,240.71,0.66]
[1758145506119,4.97172217,240.72,240.71,0.66]
[1758145506583,4.97172217,240.72,240.66,33.84]
[1758145506584,4.97172217,240.72,240.66,34.5]
[1758145506785,4.97172217,240.72,240.71,0.66]
[1758145507286,5.03172217,240.74,240.71,0.66]
[1758145507595,5.03172217,240.74,240.66,33.84]
[1758145507596,5.03172217,240.74,240.7,13.59559401]
[1758145507985,5.03172217,240.74,240.71,0.66]
[1758145508186,5.03172217,240.74,240.72,0.66]
[1758145508379,0.06,240.74,240.73,0.66]
[1758145511177,0.06,240.74,240.73,14.25559401]
[1758145514502,0.06,240.74,240.73,33.82]
[1758145515415,0.06,240.74,240.73,48.07559401]
[1758145515996,0.06,240.74,240.73,47.41559401]
[1758145516389,10.38060352,240.84,240.73,47.41559401]
[1758145516604,46.7553615,240.91,240.73,47.41559401]
[1758145516605,4.97172217,240.8,240.73,33.82]
[1758145516788,4.97172217,240.81,240.74,13.59559401]
[1758145517309,4.97172217,240.8,240.74,13.59559401]
[1758145517488,9.12455566,240.8,240.74,13.59559401]
[1758145517803,9.12455682,240.8,240.74,13.59559401]
[1758145517988,4.15283465,240.8,240.74,17.74943407]
[1758145518196,9.12455682,240.8,240.74,17.74943407]
[1758145518391,4.97172217,240.8,240.74,17.74943407]
[1758145519005,4.97172217,240.8,240.75,0.66]
[1758145519504,4.152662,240.81,240.74,17.74943407]
[1758145519505,4.152662,240.81,240.76,0.66]
[1758145519707,4.97172217,240.8,240.74,17.74943407]
[1758145519911,2.04190287,240.82,240.76,13.59559401]
[1758145520108,2.04190287,240.82,240.75,0.66]
[1758145520293,2.04190287,240.8,240.76,13.59559401]
[1758145520688,2.04190287,240.8,240.77,0.66]
[1758145521002,2.04190287,240.82,240.78,0.66]
[1758145521203,2.04190287,240.82,240.75,13.59559401]
[1758145521406,2.04190287,240.83,240.78,35.08]
[1758145521608,2.04190287,240.83,240.78,39.23315671]
[1758145521784,2.04190287,240.83,240.79,13.59559401]
[1758145522206,6.19425219,240.83,240.79,13.59559401]
[1758145522407,2.04190287,240.83,240.8,0.66]
[1758145522586,4.15212503,240.85,240.8,0.66]
[1758145522786,6.1940279,240.85,240.79,13.59559401]
[1758145522986,0.7,240.84,240.76,0.66]
[1758145523208,2.04190287,240.81,240.74,34.44]
[1758145523403,0.7,240.8,240.74,13.59559401]
[1758145523603,4.15295936,240.8,240.75,0.66]
[1758145523905,2.74190287,240.79,240.73,13.59559401]
[1758145525211,2.04190287,240.79,240.73,13.59559401]
[1758145525591,4.15316886,240.78,240.73,13.59559401]
[1758145525800,4.15316886,240.78,240.73,14.25559401]
[1758145526002,4.15316886,240.78,240.72,13.59559401]
[1758145526813,4.15316886,240.78,240.72,14.25559401]
[1758145527486,4.15299588,240.8,240.73,0.66]
[1758145527686,6.19489875,240.8,240.73,0.66]
[1758145528728,16.57695855,240.8,240.73,0.66]
[1758145529108,14.53505568,240.8,240.73,0.66]
[1758145529293,16.57695855,240.8,240.73,0.66]
[1758145529694,6.19489875,240.8,240.73,0.66]
[1758145529890,0.7,240.79,240.68,0.66]
[1758145530095,2.04190287,240.78,240.69,13.59559401]
[1758145530314,2.04190287,240.78,240.7,0.66]
[1758145530816,2.04190287,240.76,240.67,35.1]
[1758145531197,4.15368639,240.75,240.68,4.81489446]
[1758145531707,2.04190287,240.76,240.68,4.81489446]
[1758145532222,6.92349405,240.79,240.69,14.25559401]
[1758145532397,6.19499266,240.79,240.71,13.59559401]
[1758145532598,0.67,240.78,240.71,13.59559401]
[1758145532803,4.15308979,240.79,240.7,0.68]
[1758145533014,0.67,240.78,240.7,0.68]
[1758145533222,4.15334136,240.77,240.7,0.68]
[1758145536009,6.19524423,240.77,240.7,4.83451864]
[1758145536214,2.77040426,240.78,240.71,0.68]
[1758145536518,4.15325543,240.78,240.71,14.27559401]
[1758145536827,4.15325543,240.78,240.71,13.59559401]
[1758145537117,4.15325543,240.78,240.72,14.27559401]
[1758145537420,4.15339804,240.77,240.71,13.59559401]
[1758145537630,60.24,240.83,240.71,13.59559401]
[1758145537631,3.51142193,240.84,240.72,18.42979806]
[1758145537794,2.04190287,240.81,240.74,13.59559401]
[1758145537995,3.45130549,240.85,240.75,0.68]
[1758145538196,2.04190287,240.81,240.75,0.68]
[1758145538622,2.04190287,240.83,240.75,0.68]
[1758145539121,4.82197298,240.85,240.75,0.68]
[1758145539122,7.60327847,240.85,240.75,0.68]
[1758145539328,2.04190287,240.82,240.74,13.59559401]
[1758145539505,4.15265146,240.81,240.74,13.59559401]
[1758145539706,4.15265146,240.81,240.74,17.74937414]
[1758145539906,4.15265146,240.81,240.74,18.42937414]
[1758145541416,6.1947825,240.8,240.74,18.42937414]
[1758145542326,4.15287963,240.8,240.74,18.42937414]
[1758145542519,4.1523066,240.83,240.75,0.68]
[1758145542721,2.04190287,240.8,240.75,0.68]
[1758145543109,2.04190287,240.8,240.74,17.74937414]
[1758145543317,4.1523066,240.83,240.75,0.68]
[1758145543518,6.19466763,240.81,240.75,0.68]
[1758145543728,4.15276476,240.81,240.75,0.68]
[1758145544111,7.34323857,240.81,240.75,0.68]
[1758145544329,7.34323857,240.81,240.75,4.83365295]
[1758145544529,7.34323857,240.81,240.76,0.68]
[1758145544728,7.34323857,240.81,240.77,0.68]
[1758145545122,7.34323857,240.81,240.78,0.68]
[1758145545833,3.19047381,240.82,240.78,0.68]
[1758145546005,4.1523066,240.83,240.78,0.68]
[1758145546328,3.19047381,240.82,240.76,0.68]
[1758145547828,4.1523066,240.83,240.76,4.83340825]
[1758145548014,3.19047381,240.82,240.77,0.68]
[1758145548327,5.98108308,240.82,240.77,0.68]
[1758145549131,10.13360125,240.82,240.77,0.68]
[1758145549331,2.79060927,240.81,240.78,0.68]
[1758145549526,2.79060927,240.81,240.76,4.15340825]
[1758145549704,2.79060927,240.81,240.77,0.68]
[1758145550102,2.79060927,240.81,240.74,47.69559401]
[1758145550103,3.86047381,240.8,240.74,47.69559401]
[1758145550303,3.86047381,240.8,240.73,13.59559401]
[1758145550304,3.19047381,240.78,240.73,13.59559401]
[1758145550530,3.19047381,240.76,240.7,34.04]